bitfinex-derivatives/quotes_ETHF0:USTF0_20240922
["timestamp","ask_amount","ask_price","bid_price","bid_amount"]
[1727044543449,5.73902,2556.0,2555.5,0.39128]
[1727044543450,3.2078,2555.7,2555.5,0.39128]
[1727044544038,3.2078,2555.7,2555.4,0.3913]
[1727044544349,3.2078,2555.7,2555.0,0.7359]
[1727044544850,0.39129,2555.6,2555.0,0.7359]
[1727044545148,3.2078,2555.4,2555.0,1.12726]
[1727044545343,3.2078,2555.4,2555.0,0.7359]
[1727044545548,3.2078,2555.4,2555.1,0.39134]
[1727044545844,3.2078,2555.4,2555.0,0.7359]
[1727044546443,3.2078,2555.4,2555.0,1.12725]
[1727044546641,5.17345,2555.8,2555.0,0.7359]
[1727044546848,4.7822,2555.8,2555.0,4.33506]
[1727044547138,3.2078,2555.5,2555.1,0.39135]
[1727044547537,3.2078,2555.5,2555.0,1.12726]
[1727044547742,3.2078,2555.5,2555.1,0.39134]
[1727044549239,3.2078,2555.5,2555.2,0.39133]
[1727044550440,3.2078,2555.5,2555.3,0.39131]
[1727044550837,3.2078,2555.5,2555.0,3.9437]
[1727044550838,3.2078,2555.5,2555.4,0.3913]
[1727044551150,0.7959,2555.9,2555.3,3.2078]
[1727044551151,3.2078,2555.9,2555.3,3.2078]
[1727044551348,3.2078,2555.9,2555.2,4.711]
[1727044551349,0.706,2556.2,2555.6,3.2078]
[1727044551647,0.706,2556.2,2555.8,0.39123]
[1727044551944,0.706,2556.2,2555.7,3.2078]
[1727044551945,0.706,2556.2,2555.9,0.39123]
[1727044552150,0.706,2556.2,2555.8,0.39123]
[1727044552646,0.706,2556.2,2555.8,0.39124]
[1727044553745,0.706,2556.2,2555.6,1.13137]
[1727044553746,1.09719,2556.2,2555.6,1.13137]
[1727044553940,0.706,2556.2,2555.7,0.39126]
[1727044554550,0.706,2556.2,2555.8,0.39123]
[1727044554848,0.706,2556.2,2555.7,0.39125]
[1727044555047,0.706,2556.2,2555.6,3.9479]
[1727044555247,3.2078,2556.3,2555.6,3.9479]
[1727044555443,3.2078,2556.3,2556.0,0.39121]
[1727044555754,3.2078,2556.3,2555.7,5.86615577]
[1727044555955,3.2078,2556.3,2556.0,0.39121]
[1727044556146,0.7467,2556.7,2556.1,5.8378]
[1727044556450,3.2078,2556.9,2556.1,5.8378]
[1727044556451,3.2078,2556.9,2556.2,0.19978944]
[1727044556652,1.4706,2557.3,2556.4,3.2078]
[1727044556858,1.4706,2557.3,2556.5,0.7327]
[1727044557154,3.2078,2557.4,2557.1,0.39104]
[1727044557352,3.2078,2557.4,2556.8,4.712]
[1727044557555,3.2078,2557.4,2557.0,0.39105]
[1727044558452,3.2078,2557.4,2557.1,0.39104]
[1727044558651,3.2078,2557.4,2557.0,0.39105]
[1727044558851,3.2078,2557.4,2556.8,4.712]
[1727044559347,3.2078,2557.4,2556.8,5.10308]
[1727044559549,3.2078,2557.4,2556.9,0.39107]
[1727044559747,3.2078,2557.4,2556.8,4.712]
[1727044560158,3.2078,2557.4,2557.1,0.39103]
[1727044561045,5.4526,2557.9,2557.3,0.39101]
[1727044561267,5.4526,2557.9,2556.8,4.712]
[1727044561268,5.4526,2557.9,2556.9,3.2078]
[1727044561449,4.7274,2557.9,2557.4,0.39099]
[1727044562259,1.5196,2557.9,2557.4,0.39099]
[1727044562755,0.3909,2558.1,2557.5,0.39098]
[1727044562962,3.2078,2558.2,2557.4,0.39099]
[1727044563159,0.3909,2558.1,2557.4,0.39099]
[1727044563362,0.39091,2558.0,2557.4,0.39099]
[1727044563553,3.2078,2557.9,2557.4,0.391]
[1727044563757,0.3909,2558.1,2557.4,0.391]
[1727044564053,0.3909,2558.1,2557.5,0.39098]
[1727044564254,3.2078,2557.9,2557.4,0.39099]
[1727044564656,3.2078,2557.9,2557.3,0.7279]
[1727044564657,3.2078,2557.9,2557.3,1.11891]
[1727044564861,3.2078,2557.9,2557.4,0.39099]
[1727044565058,3.2078,2557.9,2557.3,0.7279]
[1727044565247,0.39095,2557.8,2557.3,0.7279]
[1727044565562,0.39095,2557.7,2557.3,1.11891]
[1727044566067,0.39095,2557.7,2557.2,3.59882]
[1727044566457,0.39095,2557.7,2557.3,0.39101]
[1727044566654,0.39095,2557.7,2557.2,3.2078]
[1727044566855,0.39095,2557.7,2556.9,0.7125]
[1727044566856,3.2078,2557.3,2556.9,0.7125]
[1727044567056,3.2078,2557.3,2557.0,0.39105]
[1727044568664,3.59882,2557.3,2556.9,1.10356]
[1727044568860,3.2078,2557.3,2556.9,0.7125]
[1727044569162,3.2078,2557.3,2556.9,1.10356]
[1727044569358,3.59881,2557.3,2556.9,1.10356]
[1727044569562,3.59881,2557.3,2556.9,1.10357]
[1727044569766,3.2078,2557.3,2557.0,0.39105]
[1727044569957,3.2078,2557.3,2556.9,0.7125]
[1727044569958,3.59882,2557.3,2556.9,0.7125]
[1727044570158,3.59882,2557.3,2556.9,1.10357]
[1727044570358,3.2078,2557.3,2557.0,0.39105]
[1727044570660,3.2078,2557.3,2556.9,0.7125]
[1727044570854,2.3215,2557.6,2557.3,0.39101]
[1727044570855,1.5425,2557.6,2557.3,0.39101]
[1727044571058,3.2078,2557.9,2557.6,0.39096]
[1727044571263,1.12711,2558.0,2557.5,0.39097]
[1727044571467,1.12711,2558.0,2557.3,3.2078]
[1727044571763,0.7362,2558.0,2557.3,3.2078]
[1727044572066,0.7233,2558.3,2557.9,0.39091]
[1727044572364,3.9311,2558.3,2557.9,0.39091]
[1727044572570,3.9311,2558.3,2557.6,3.2078]
[1727044572571,3.2078,2558.6,2558.2,0.39086]
[1727044572872,1.4942,2558.8,2558.0,3.2078]
[1727044573059,3.2078,2559.0,2558.1,0.97723]
[1727044573256,3.59856,2559.0,2558.4,0.39083]
[1727044573465,3.2078,2559.0,2558.5,0.39083]
[1727044574168,3.2078,2559.0,2558.3,3.2078]
[1727044574169,3.59856,2559.0,2558.4,0.39084]
[1727044574374,3.2078,2559.0,2558.3,3.2078]
[1727044575355,3.2078,2558.7,2558.3,3.59866]
[1727044575555,0.39079,2558.8,2558.3,3.2078]
[1727044575755,3.2078,2558.7,2558.3,3.59866]
[1727044575964,0.3908,2558.7,2558.1,3.59868]
[1727044576159,3.2078,2558.5,2558.1,3.2078]
[1727044576468,3.59864,2558.5,2558.1,3.2078]
[1727044576862,0.39085,2558.4,2557.9,5.09992]
[1727044577171,3.2078,2558.5,2558.1,0.39089]
[1727044577466,0.39082,2558.6,2558.1,0.39088]
[1727044577672,3.2078,2558.8,2557.9,4.709]
[1727044577673,0.39081,2558.7,2558.2,0.39087]
[1727044577969,0.3908,2558.7,2558.3,0.39085]
[1727044578158,0.3908,2558.7,2558.2,0.39087]
[1727044578564,0.3908,2558.7,2558.3,0.39085]
[1727044578769,3.2078,2558.8,2558.2,0.39087]
[1727044579269,0.39084,2558.4,2557.9,5.09992]
[1727044579470,0.3909,2558.1,2557.7,1.88295]
[1727044579783,0.3909,2558.1,2557.7,0.39094]
[1727044579968,3.59868,2558.2,2557.8,0.39094]
[1727044580166,3.59868,2558.2,2557.9,0.39091]
[1727044580167,3.2078,2558.2,2557.9,0.39091]
[1727044580472,2.2128,2558.4,2557.8,0.39093]
[1727044580666,0.39087,2558.3,2557.8,0.39093]
[1727044580862,2.60365,2558.4,2558.0,0.3909]
[1727044581173,1.84345,2558.4,2558.0,0.39089]
[1727044581373,1.84345,2558.4,2558.0,0.3909]
[1727044582069,0.3909,2558.1,2557.7,0.39095]
[1727044582266,3.2078,2558.2,2557.4,3.2078]
[1727044582267,3.59868,2558.2,2557.8,0.39093]
[1727044582465,3.2078,2558.6,2557.7,5.8378]
[1727044582660,3.2078,2558.6,2557.8,0.19238138]
[1727044582966,3.2078,2558.9,2558.0,5.8378]
[1727044583168,3.2078,2558.9,2558.1,0.7211]
[1727044583368,0.39079,2558.8,2558.1,5.84211898]
[1727044583571,3.59857,2558.9,2558.1,5.84211898]
[1727044583872,2.202,2559.1,2558.4,3.2078]
[1727044583873,0.39077,2559.0,2558.4,3.2078]
[1727044584174,2.202,2559.1,2558.4,3.2078]
[1727044584368,2.59274,2559.1,2558.7,0.39079]
[1727044584564,0.39073,2559.2,2558.8,0.39078]
[1727044584774,13.755,2559.8,2558.8,0.39078]
[1727044584775,3.2078,2559.6,2558.9,2.63]
[1727044585070,3.2078,2559.9,2559.5,0.39066]
[1727044585270,3.2078,2559.9,2559.6,0.39065]
[1727044585466,3.2078,2559.9,2559.4,4.981]
[1727044585667,3.2078,2559.9,2559.5,2.63]
[1727044585864,0.7349,2560.6,2559.7,3.2078]
[1727044586074,0.39055,2560.4,2559.9,0.39061]
[1727044586577,0.39052,2560.6,2560.1,0.39058]
[1727044586774,3.2078,2560.7,2560.0,3.2078]
[1727044587082,0.39052,2560.6,2560.1,0.39058]
[1727044587375,3.2078,2560.7,2560.1,4.98]
[1727044587767,1.5201,2561.1,2560.1,4.98]
[1727044587768,1.5201,2561.1,2560.1,7.61]
[1727044587965,3.2078,2560.9,2560.1,7.61]
[1727044588176,3.2078,2560.9,2560.6,0.3905]
[1727044588376,3.2078,2560.9,2560.1,7.61]
[1727044588563,3.59827,2560.9,2560.4,0.39053]
[1727044588763,3.59827,2560.9,2560.1,7.61]
[1727044588764,3.59827,2560.9,2560.2,3.2078]
[1727044588973,0.39048,2560.8,2560.3,0.39055]
[1727044589176,3.2078,2560.9,2560.2,0.39056]
[1727044589478,3.2078,2560.9,2560.0,0.39059]
[1727044589783,3.2078,2560.6,2560.2,0.39057]
[1727044590072,3.2078,2560.6,2560.2,0.39056]
[1727044590276,0.3905,2560.7,2560.3,0.39055]
[1727044590479,0.39052,2560.6,2559.9,10.8178]
[1727044590685,3.2078,2560.2,2559.5,3.2078]
[1727044590870,2.63,2560.4,2559.4,0.39069]
[1727044590871,3.59842,2559.9,2559.4,0.39069]
[1727044591070,0.39062,2559.9,2559.4,0.39069]
[1727044591277,3.2078,2560.0,2559.3,0.3907]
[1727044591582,1.7123,2560.3,2559.1,0.7487]
[1727044591583,0.39059,2560.1,2559.2,5.13655846]
[1727044591774,3.9713,2560.2,2559.4,5.13655846]
[1727044591979,4.36187,2560.2,2559.7,0.39063]
[1727044592372,3.9713,2560.2,2559.8,0.39063]
[1727044592573,3.2078,2560.2,2559.8,0.39063]
[1727044592776,1.12647,2560.3,2559.9,3.9064]
[1727044592777,0.7359,2560.3,2559.9,3.9064]
[1727044592976,0.39054,2560.4,2559.9,5.46698045]
[1727044593174,0.39054,2560.4,2559.9,0.39061]
[1727044593579,3.59838,2560.2,2559.8,5.217]
[1727044593882,0.3906,2560.1,2559.8,5.217]
[1727044594689,3.2078,2560.2,2559.2,3.2078]
[1727044594885,0.97658,2559.8,2559.2,3.2078]
[1727044595181,0.39067,2559.6,2559.1,0.39073]
[1727044595386,0.39067,2559.6,2558.7,5.991]
[1727044595387,3.59845,2559.7,2559.2,0.39071]
[1727044595773,0.39066,2559.6,2559.2,0.39071]
[1727044595972,3.59846,2559.7,2559.2,0.39071]
[1727044596171,3.2078,2559.7,2559.2,0.39072]
[1727044596472,3.2078,2559.7,2558.8,3.2078]
[1727044596473,3.2078,2559.7,2558.9,0.39076]
[1727044596677,3.2078,2559.4,2558.7,5.991]
[1727044596873,3.2078,2559.4,2558.7,5.216]
[1727044596874,3.59855,2559.1,2558.7,5.216]
[1727044597070,0.39072,2559.3,2558.7,5.216]
[1727044597279,3.2078,2559.3,2558.7,5.216]
[1727044597477,0.39074,2559.1,2558.7,5.216]
[1727044597678,0.39073,2559.2,2558.7,5.6068]
[1727044598183,3.2078,2559.3,2558.5,3.9212]
[1727044598378,0.97674,2559.4,2558.3,0.39085]
[1727044598379,0.39077,2558.9,2558.3,0.39085]
[1727044598579,3.2078,2559.0,2558.2,12.9788]
[1727044598780,3.59856,2559.0,2558.4,0.39084]
[1727044598976,0.39078,2558.9,2558.3,0.39085]
[1727044599282,0.39079,2558.8,2558.2,13.36967]
[1727044599781,3.2078,2558.7,2558.2,13.36967]
[1727044600080,0.97682,2559.2,2558.2,13.36967]
[1727044600081,0.39076,2559.0,2558.4,0.39084]
[1727044600281,3.2078,2558.9,2558.2,12.9788]
[1727044600589,3.59853,2559.2,2558.6,0.39081]
[1727044601084,0.39071,2559.3,2558.8,0.39078]
[1727044601290,0.3907,2559.4,2558.8,0.39078]
[1727044601583,0.97664,2559.7,2558.4,2.63]
[1727044601584,3.2078,2559.2,2558.7,0.3908]
[1727044601886,0.39073,2559.2,2558.4,2.63]
[1727044602183,3.59853,2559.2,2558.6,3.59861]
[1727044602380,3.2078,2558.9,2558.2,12.9788]
[1727044602586,0.39084,2558.5,2558.2,12.9788]
[1727044602779,0.39084,2558.5,2558.2,3.2078]
[1727044602972,0.7379,2558.8,2558.2,7.1166]
[1727044603179,0.3908,2558.7,2558.2,3.2078]
[1727044603374,0.7379,2558.8,2558.2,3.2078]
[1727044603785,0.39081,2558.7,2558.2,3.2078]
[1727044604092,0.39081,2558.7,2558.2,3.59867]
[1727044605081,0.7379,2558.8,2558.2,3.2078]
[1727044605389,0.39085,2558.4,2558.2,3.2078]
[1727044605891,0.39085,2558.4,2558.0,6.381]
[1727044606485,3.2078,2558.6,2557.8,3.2078]
[1727044606787,4.18488,2558.5,2557.5,4.6764]
[1727044606977,0.7379,2558.8,2558.3,0.39085]
[1727044607180,3.9323,2559.1,2558.6,0.39081]
[1727044607388,3.9323,2559.1,2558.7,0.39079]
[1727044607587,3.9323,2559.1,2558.8,0.39078]
[1727044607786,3.9323,2559.1,2558.4,4.7373]
[1727044607787,3.2078,2559.4,2558.4,7.3673]
[1727044607991,3.2078,2559.4,2558.7,5.8378]
[1727044608292,3.2078,2560.3,2559.3,3.2078]
[1727044608483,3.2078,2560.3,2559.1,2.63]
[1727044608484,3.2078,2560.3,2559.6,5.8378]
[1727044608680,3.2078,2560.3,2559.7,0.39064]
[1727044608882,3.2078,2560.3,2559.6,5.8378]
[1727044609285,3.59836,2560.3,2559.6,5.8378]
[1727044609888,3.2078,2560.3,2559.6,5.8378]
[1727044610190,3.2078,2560.3,2559.6,3.2078]
[1727044610492,0.39058,2560.2,2559.6,5.218]
[1727044610685,3.2078,2560.0,2559.6,5.218]
[1727044610883,3.2078,2560.7,2560.2,0.39057]
[1727044611085,3.2078,2561.2,2560.4,0.39053]
[1727044611286,1.4903,2561.5,2560.3,4.1697]
[1727044611287,3.2078,2561.5,2560.6,2.63]
[1727044611480,3.2078,2561.5,2561.0,2.63]
[1727044611889,3.2078,2561.8,2561.0,5.8378]
[1727044612287,1.51858883,2562.7,2561.7,2.63]
[1727044612485,3.2078,2562.6,2561.8,5.454]
[1727044612680,3.2078,2562.6,2561.6,3.2078]
[1727044612885,3.2078,2562.2,2561.5,5.454]
[1727044613086,3.2078,2562.2,2561.5,5.84437]
[1727044613288,3.2078,2563.0,2562.1,2.63]
[1727044613483,3.2078,2562.7,2562.1,2.63]
[1727044613688,3.2078,2562.7,2562.1,3.02028]
[1727044613880,3.2078,2562.7,2562.1,2.63]
[1727044614391,3.598,2562.7,2561.8,3.2078]
[1727044614693,3.59799,2562.7,2561.8,3.2078]
[1727044614883,0.97521,2563.5,2561.7,5.84233]
[1727044614884,3.2078,2562.8,2561.9,2.95]
[1727044615084,3.2078,2562.8,2561.9,8.04717917]
[1727044615382,3.2078,2562.8,2562.0,3.2078]
[1727044615590,3.2078,2563.5,2562.7,3.2078]
[1727044615782,3.2078,2563.5,2563.0,6.1578]
[1727044616090,3.2078,2563.5,2563.0,11.6098]
[1727044616393,3.2078,2563.5,2563.2,0.3901]
[1727044616588,3.2078,2563.5,2563.0,11.6098]
[1727044616786,3.2078,2563.5,2563.0,11.99994]
[1727044617086,3.2078,2563.5,2563.0,3.2078]
[1727044617589,3.59787,2563.5,2563.0,3.2078]
[1727044617786,3.2078,2563.5,2562.4,3.59803]
[1727044617985,3.2078,2563.2,2562.5,5.45]
[1727044618398,3.2078,2563.2,2562.5,5.84022]
[1727044618689,3.2078,2563.2,2562.5,5.45]
[1727044618889,3.2078,2563.2,2562.4,3.2078]
[1727044619094,3.59795,2563.0,2562.4,5.45]
[1727044619393,3.2078,2563.0,2562.1,0.76]
[1727044619593,3.2078,2563.4,2562.3,3.59805]
[1727044619888,3.2078,2563.2,2562.6,2.95]
[1727044620093,3.2078,2563.5,2562.6,3.3402]
[1727044620393,0.39008,2563.4,2562.6,2.95]
[1727044620588,3.2078,2563.3,2562.6,3.3402]
[1727044620787,3.2078,2563.3,2562.4,3.2078]
[1727044620994,0.39018,2562.8,2562.0,3.2078]
[1727044621184,3.2078,2562.7,2562.0,5.666]
[1727044621380,3.2078,2562.5,2561.9,5.666]
[1727044621689,3.2078,2562.8,2561.9,16.80999389]
[1727044622397,0.7148,2563.1,2561.3,3.2078]
[1727044622398,3.2078,2562.0,2561.3,3.2078]
[1727044622692,3.2078,2562.0,2561.4,0.39038]
[1727044623193,3.2078,2562.0,2560.8,12.9698]
[1727044623389,0.39034,2561.7,2561.1,5.666]
[1727044623697,3.2078,2561.7,2561.1,6.05643]
[1727044623992,3.2078,2562.1,2561.1,5.666]
[1727044624189,3.59809,2562.1,2561.3,0.39039]
[1727044624382,0.3903,2562.0,2561.2,0.39042]
[1727044624584,3.59809,2562.1,2561.1,11.8238]
[1727044625084,3.2078,2562.1,2561.1,11.8238]
[1727044625491,3.2078,2561.8,2561.1,11.8238]
[1727044625795,3.59813,2561.8,2561.1,12.21422]
[1727044626095,3.2078,2561.8,2561.1,11.8238]
[1727044626691,3.2078,2561.8,2561.4,0.39038]
[1727044626894,3.2078,2562.1,2561.4,0.39038]
[1727044627299,3.59809,2562.1,2561.4,0.39038]
[1727044627793,3.2078,2562.1,2561.6,0.39035]
[1727044627991,3.2078,2562.5,2561.7,3.59813]
[1727044628189,0.39026,2562.3,2561.6,0.39035]
[1727044628395,7.077,2563.3,2561.6,0.39035]
[1727044628396,3.2078,2563.5,2562.1,2.95]
[1727044628587,0.39014,2563.1,2562.4,3.59802]
[1727044628892,3.59794,2563.1,2562.4,3.59803]
[1727044629086,3.2078,2563.1,2562.4,3.2078]
[1727044629289,2.47012,2563.4,2562.2,6.06526]
[1727044629290,3.2078,2562.8,2562.2,6.06526]
[1727044629498,0.39017,2562.8,2562.2,5.675]
[1727044630397,3.2078,2562.9,2562.2,5.675]
[1727044630594,3.2078,2562.6,2562.2,5.675]
[1727044630893,0.39018,2562.8,2562.2,5.675]
[1727044631191,3.59799,2562.7,2562.2,5.675]
[1727044631393,0.39024,2562.4,2562.2,0.01]
[1727044631611,0.39022,2562.5,2562.2,0.01]
[1727044631784,3.59801,2562.6,2562.2,0.01]
[1727044632191,0.39023,2562.4,2562.2,0.01]
[1727044632591,3.2078,2562.6,2562.2,0.01]
[1727044632794,5.42013,2563.4,2562.2,0.01]
[1727044632795,3.2078,2562.7,2562.2,0.01]
[1727044633004,0.39023,2562.5,2562.2,0.01]
[1727044633390,3.59801,2562.6,2562.2,0.01]
[1727044633587,0.39022,2562.5,2562.2,0.01]
[1727044634197,3.2078,2562.6,2562.2,0.01]
[1727044634406,3.59805,2562.3,2562.2,0.01]
[1727044634704,0.39025,2562.3,2562.2,0.01]
[1727044634999,3.2078,2562.6,2562.2,0.01]
[1727044635200,3.2078,2562.6,2562.3,0.39025]
[1727044635394,3.59795,2563.0,2562.4,0.39023]
[1727044635595,3.2078,2563.0,2562.5,0.39021]
[1727044635796,3.2078,2563.0,2562.5,0.39022]
[1727044635996,4.6782,2563.3,2562.3,3.2078]
[1727044636197,4.6782,2563.3,2562.6,3.2078]
[1727044636502,4.6782,2563.3,2562.3,0.39024]
[1727044636503,0.39016,2562.9,2562.3,0.39024]
[1727044636695,1.4704,2563.3,2562.2,5.8378]
[1727044636896,0.39018,2562.8,2562.3,5.889]
[1727044637104,4.6782,2563.3,2562.8,0.39017]
[1727044637407,5.0683,2563.3,2562.7,0.39018]
[1727044637592,4.6782,2563.3,2562.8,0.39017]
[1727044637796,5.0683,2563.3,2562.7,0.39018]
[1727044638303,4.87689,2563.2,2562.2,0.01]
[1727044638598,1.4704,2563.3,2562.4,0.39023]
[1727044638798,0.39017,2562.9,2562.3,6.27824]
[1727044639591,3.2078,2563.1,2562.3,5.888]
[1727044639796,0.39025,2562.3,2562.2,0.01]
[1727044640202,0.39025,2562.3,2561.3,9.0958]
[1727044640203,0.3903,2562.0,2561.4,0.39038]
[1727044640400,3.59808,2562.2,2561.6,0.39034]
[1727044640600,1.4855,2562.4,2561.8,0.39032]
[1727044640800,0.39025,2562.3,2561.8,0.39032]
[1727044641304,0.39022,2562.5,2561.7,2.95]
[1727044641505,3.2078,2562.6,2561.7,2.95]
[1727044641893,0.39022,2562.5,2562.0,0.39029]
[1727044642097,3.59801,2562.6,2562.1,0.39027]
[1727044642503,0.39024,2562.4,2561.9,0.39031]
[1727044642811,3.59801,2562.6,2562.1,0.39028]
[1727044643198,3.59801,2562.6,2562.0,0.39029]
[1727044643400,0.39027,2562.2,2561.7,3.34034]
[1727044643606,0.3902,2562.6,2562.0,0.39028]
[1727044643912,0.39023,2562.5,2561.9,3.5981]
[1727044644102,0.39023,2562.5,2562.0,0.39029]
[1727044644301,3.2078,2562.7,2561.9,3.2078]
[1727044644302,0.39024,2562.4,2561.9,3.5981]
[1727044644603,0.39027,2562.2,2561.9,3.2078]
[1727044644804,0.39028,2562.1,2561.8,0.7472]
[1727044645007,0.39035,2561.7,2561.3,5.889]
[1727044645209,0.39032,2561.9,2561.4,0.39038]
[1727044645910,0.39032,2561.9,2561.3,5.889]
[1727044645911,4.92428,2562.0,2561.2,3.9067]
[1727044646114,0.39034,2561.7,2561.2,10.18611]
[1727044646306,0.39036,2561.6,2561.2,9.7957]
[1727044646502,0.39036,2561.6,2561.2,10.18612]
[1727044646705,0.39036,2561.6,2561.2,9.7957]
[1727044647000,0.39033,2561.8,2561.3,0.3904]
[1727044647204,0.39036,2561.6,2561.2,9.7957]
[1727044647404,4.18348,2562.2,2561.2,9.7957]
[1727044647602,4.18348,2562.2,2561.3,0.3904]
[1727044647808,0.39031,2562.0,2561.5,3.59817]
[1727044648012,0.39031,2562.0,2561.2,6.5879]
[1727044648013,0.9759,2561.6,2560.6,0.3905]
[1727044648208,3.2078,2561.2,2560.4,0.7648]
[1727044648402,0.39044,2561.1,2560.6,0.39051]
[1727044648603,0.39047,2560.9,2560.5,3.2078]
[1727044648811,3.2078,2561.0,2560.4,0.7648]
[1727044649005,0.39046,2560.9,2560.4,1.15534]
[1727044649311,3.59824,2561.1,2560.5,3.2078]
[1727044649515,3.2078,2561.1,2560.5,6.1578]
[1727044650017,3.2078,2561.1,2560.8,0.39048]
[1727044650220,3.2078,2561.1,2560.5,6.1578]
[1727044650221,3.2078,2561.1,2560.9,0.39046]
[1727044650519,3.2078,2561.1,2560.8,0.39047]
[1727044650810,3.2078,2561.1,2560.7,0.39048]
[1727044651012,3.2078,2561.1,2560.6,0.3905]
[1727044651210,3.2078,2561.1,2560.4,0.7648]
[1727044651713,3.2078,2560.5,2559.4,6.1578]
[1727044651906,3.2078,2560.3,2559.5,10.7958]
[1727044652108,0.97631,2560.6,2559.5,7.588]
[1727044652109,3.59841,2560.0,2559.5,7.588]
[1727044652307,0.39057,2560.2,2559.5,7.588]
[1727044652503,3.2078,2560.3,2559.5,7.588]
[1727044652708,3.59832,2560.6,2560.0,0.39059]
[1727044653013,3.59832,2560.6,2559.9,0.39061]
[1727044653014,0.39053,2560.5,2559.9,0.39061]
[1727044653215,3.2078,2560.6,2560.1,2.95]
[1727044653418,3.2078,2560.6,2560.3,0.39055]
[1727044653613,3.9244,2561.0,2560.2,0.7453]
[1727044653815,3.9244,2561.0,2560.6,0.39051]
[1727044654016,3.9244,2561.0,2560.9,0.39046]
[1727044654017,3.2078,2561.0,2560.9,0.39046]
[1727044654518,3.2078,2561.0,2560.7,0.39049]
[1727044654712,3.2078,2561.0,2560.8,0.39048]
[1727044654907,0.39038,2561.5,2560.9,0.39046]
[1727044655714,3.2078,2562.0,2561.3,0.3904]
[1727044655922,3.5981,2562.0,2561.3,0.3904]
[1727044656120,3.2078,2562.0,2561.4,0.39038]
[1727044656728,3.2078,2562.0,2561.5,3.2078]
[1727044656914,3.2078,2562.0,2561.3,0.7609]
[1727044657113,3.2078,2562.0,2561.4,0.39038]
[1727044657315,3.5981,2562.0,2561.4,0.39038]
[1727044657522,3.2078,2562.0,2561.4,0.39038]
[1727044657823,0.39033,2561.8,2561.3,6.8939]
[1727044658012,0.39036,2561.6,2561.1,3.2078]
[1727044658324,3.59813,2561.8,2561.2,0.39041]
[1727044659325,0.39032,2561.9,2561.1,3.2078]
[1727044659528,0.39031,2562.0,2561.4,0.39039]
[1727044659723,3.2078,2562.1,2561.2,2.95]
[1727044659934,3.2078,2562.1,2561.5,0.39037]
[1727044659935,3.59809,2562.1,2561.5,0.39037]
[1727044660114,3.2078,2562.1,2561.7,0.39034]
[1727044660524,3.2078,2562.1,2561.6,0.39035]
[1727044660927,3.2078,2562.1,2561.4,3.2078]
[1727044661120,3.2078,2561.8,2561.4,0.39039]
[1727044661426,0.3903,2562.0,2561.4,0.39039]
[1727044662429,3.59809,2562.1,2561.5,0.39036]
[1727044662931,3.2078,2562.1,2561.6,0.39035]
[1727044663120,3.2078,2562.1,2561.6,1.13525]
[1727044663322,3.59809,2562.1,2561.6,0.7449]
[1727044663814,3.2078,2562.1,2561.6,0.7449]
[1727044664014,3.59808,2562.1,2561.6,0.7449]
[1727044664517,3.59808,2562.1,2561.6,1.13526]
[1727044664722,3.59808,2562.1,2561.6,0.7449]
[1727044664931,0.3903,2562.0,2561.6,0.7449]
[1727044665231,3.59814,2561.8,2561.2,1.13531]
[1727044665424,0.99911004,2562.1,2561.7,3.2078]
[1727044665628,0.99911004,2562.6,2562.0,3.2078]
[1727044665833,1.38932004,2562.6,2562.0,9.73008]
[1727044666022,1.09216,2562.9,2562.3,3.59804]
[1727044666224,1.09216,2562.9,2562.3,3.2078]
[1727044666225,0.39019,2562.7,2562.3,3.2078]
[1727044666530,0.702,2562.9,2562.3,3.2078]
[1727044666728,0.39019,2562.7,2562.3,3.2078]
[1727044666926,0.39021,2562.6,2562.3,3.2078]
[1727044668826,0.39026,2562.3,2561.7,3.59814]
[1727044669127,0.99911004,2562.8,2562.0,2.95]
[1727044669325,0.3902,2562.7,2562.1,0.39028]
[1727044669849,4.01691003,2562.9,2562.5,2.95]
[1727044670047,3.2078,2563.6,2562.6,10.8491]
[1727044670345,3.2078,2563.6,2563.5,0.39007]
[1727044670547,0.7649,2563.8,2563.5,3.2078]
[1727044670737,1.51858883,2564.2,2563.5,3.2078]
[1727044670738,1.38908004,2564.2,2563.6,0.39005]
[1727044670935,0.38997,2564.2,2563.5,3.59786]
[1727044671140,3.59775,2564.3,2563.6,0.39004]
[1727044671346,1.4208,2564.4,2563.8,3.2078]
[1727044671644,3.2078,2564.3,2563.8,3.2078]
[1727044671837,1.4208,2564.4,2563.4,6.8704]
[1727044671838,1.4208,2564.4,2564.1,3.2078]
[1727044672240,0.38989,2564.7,2564.1,6.1578]
[1727044672442,1.4475,2564.9,2564.1,6.1578]
[1727044672648,0.38991,2564.6,2564.1,6.1578]
[1727044672844,1.4475,2564.9,2564.1,6.1578]
[1727044673047,0.38991,2564.6,2564.1,6.1578]
[1727044673347,2.44661004,2564.9,2564.1,6.1578]
[1727044673348,1.4475,2564.9,2564.1,6.1578]
[1727044673549,1.83736,2564.9,2564.4,3.2078]
[1727044674049,0.38987,2564.8,2564.4,3.2078]
[1727044674544,1.4475,2564.9,2564.4,3.2078]
[1727044674756,0.38989,2564.7,2564.1,6.1578]
[1727044674942,0.3899,2564.6,2564.1,6.1578]